Workbook

Sheet S4G_Homework 6
C3: Name :
C6: Teacher :
B9: General Official Homework 6 Created by Mr Lafferty St. Ninian's High School
D11: This homework covers topics | AC11: Score
D13: Basic Number Operations | T13: Algebraic Equations | AF13: 21
D15: Distance Speed Time | T15: Perimeter
D17: Percentage & Money | T17: Trigonometry
D20: Teacher Comments :
D28: Pupil's Comment :
B36: 1. | C36: Carry out the following instructions. | O36: ( NON - CALCULATOR QUESTION )
B38: (a) | D38: =ROUND(RAND()*(950-730)+730,1) -> 865.2 | G38: - | H38: =ROUND(RAND()*(550-330)+330,1) -> 332.6 | L38: Working : | AJ38: =I40 -> 532.6
C40: Answer | I40: =D38-H38 -> 532.6
B42: (b) | D42: =ROUND(RAND()*(50-15)+15,1) -> 46.5 | G42: x | H42: =ROUND(RAND()*(9-3)+3,0)*10 -> 30 | L42: Working : | AJ42: =I44 -> 1395
C44: Answer | I44: =D42*H42 -> 1395
B46: (c) | D46: =ROUND(RAND()*(98-32)+32,1)*H46 -> 270.5 | G46: ÷ | H46: =ROUND(RAND()*(9-4)+4,0) -> 5 | L46: Working : | AJ46: =I48 -> 54.1
C48: Answer : | I48: =D46/H46 -> 54.1
B50: (d) | D50: =ROUND(RAND()*(9-2)+2,0)*10 -> 40 | F50: % of | H50: =ROUND(RAND()*(9-2)+2,1)*10 -> 23 | L50: Working : | AJ50: =I53 -> 9.2
C53: Answer : | I53: =H50*D50/100 -> 9.2 | AC53: ( 5 marks )
B56: 2. | C56: Liam's new car has an on-board computer.
C57: At the end of a journey the car’s computer displays the information below.
H59: Journey information
H60: Distance | M60: =AJ61*AJ63 -> 239.1666667 | Q60: miles
H61: Averaage Speed | M61: =AJ61 -> 70 | Q61: miles/hour | AJ61: =ROUND(RAND()*(14-6)+6,0)*5 -> 70
AJ62: =AK65/60 -> 0.4166666667
C63: Use the information above to calculate the time he has taken for his journey. | AJ63: =AJ65+AJ62 -> 3.416666667
C64: Give your answer in hours and minutes.
N65: Answer | T65: hrs | Y65: mins | AC65: ( 3 marks ) | AJ65: =ROUND(RAND()*(3-1)+1,0) -> 3 | AK65: =ROUND(RAND()*(11-1)+1,0)*5 -> 25
C67: Working :
B76: 3. | C76: Gordon buys an antique teapot for | N76: =ROUND(RAND()*(19-1)+1,0)*5 -> 80 | AC76: ( 3 marks )
C77: He sells it on an Internet auction site for | P77: =N76+AJ79/100*N76 -> 120
C78: Calculate his percentage profit. | O78: Working :
AJ79: =ROUND(RAND()*(19-1)+1,0)*5 -> 50
B80: Answer : | I80: %
B83: 4. | C83: Solve algebraically the equation. | O83: Working :
C85: =ROUND(RAND()*(9-5)+5,0) -> 7 | D85: =CHAR(RAND()*(122-97)+97) -> t | E85: - | F85: =ROUND(RAND()*(5-2)+2,0) -> 5 | G85: = | H85: =ROUND(RAND()*(4-2)+2,0) -> 3 | I85: =D85 -> t | J85: + | K85: =(C85*H87-F85)-H85*H87 -> 15
C86: =ROUND(RAND()*(9-(1))+(1),0) -> 5
B87: Answer : | H87: =ROUND(RAND()*(9-2)+(2),0) -> 5 | AN87: =H87 -> 5
AC89: ( 3 marks )
B92: 5. | C92: Jordan is making a sign for Capaldi’s Ice Cream Parlour. | AP92: =ROUND(RAND()*(1-0)+0,0) -> 1
C93: The sign will have two equal straight edges and a semi-circular edge.
AA94: =CONCATENATE(AN95,AO95) -> 0.7m
C95: Each straight edge is | J95: =V98 -> 2.51 | L95: metres long and | AN95: =ROUND(RAND()*(0.9-0.3)+0.3,1) -> 0.7 | AO95: m
C96: the radius of the semi-circle is | M96: =AN95 -> 0.7 | O96: metres. | AN96: =CONCATENATE(AN95,AO95) -> 0.7m
V98: =ROUND(RAND()*(4-2)+2,2) -> 2.51 | Y98: m
C99: Calculate the perimeter of the sign to 1 decimal place.
Q101: Perimeter = | X101: m | AN101: =ROUND(V98+V98+(0.5*PI()*2*AN95),1) -> 7.2
D104: Working :
AC112: ( 4 marks )
B115: 6. | C115: A boat elevator is used to take a boat from the lower canal to the upper canal.
C116: The boat elevator is in the shape of a triangle. | V116: Working :
C117: The length of the hypotenuse is | M117: =AN122 -> 79.86039066 | O117: metres.
C118: The height of the triangle is | L118: =N122 -> 26 | N118: metres. | AN118: =ROUND(SQRT((C121*C121)+(K118-I124)*(K118-I124)),1) -> 0
F119: =ROUND(RAND()*(40-15)+15,0) -> 33
H122: =AN122 -> 79.86039066 | J122: m | N122: =ROUND(RAND()*(40-15)+15,0) -> 26 | P122: m | AN122: =N122/SIN(AN127*PI()/180) -> 79.86039066
J124: xo
C127: Calculate the size of the shaded angle x °to the nearest degree. | AA127: o | AN127: =ROUND(RAND()*(20-10)+10,0) -> 19
AC128: ( 3 marks )
AB130: Total marks 21
